{"text_format":"1","workbook":"xlsx","n_sheets":5,"sheets":["Лист1","Лист1 (3)","Лист1 (2)","Лист2","Лист3"],"not_rendered":{"charts":0,"images":0,"macros":1,"external_links":0,"defined_names":0,"comments":0,"pivot_tables":0},"unopened":[],"bounds":{"document_bytes":16777216,"sheet_cells":100000,"rows_first":2000,"rows_last":500,"rows_between":2000,"halvings":0,"cell_chars":16384,"cell_head_chars":4096},"cells_cut":0,"cells_raw":0,"read":"whole","date_system":"1900"}

{"sheet":"Лист1","index":0,"n_rows":15,"n_cols":18,"rows_kept":15,"cut":false,"hidden":false,"merged":[]}
[]
[null,"дата","2012-01-03",null,null,1,2,3,4,5,6,7,8,9,10,11,12,"СУММ"]
[null,"ЕСЛИ",{"$f":"IF(DAY(C2)=1,1,0)","v":0},null,null,null,null,null,null,null,null,null,null,null,null,null,null,{"$f":"SUM(F3:Q3)","v":0}]
[null,null,null,null,null,null,null,null,null,null,null,null,null,null,null,null,null,{"$f":"SUM(F4:Q4)","v":0}]
[null,null,null,null,null,null,null,null,null,null,null,null,null,null,null,null,null,0]
[null,null,null,null,null,null,null,null,null,null,null,null,null,null,null,null,null,0]
[null,null,null,null,null,null,null,null,null,null,null,null,null,null,null,null,null,0]
[null,null,null,null,null,null,null,null,null,null,null,null,null,null,null,null,null,0]
[null,null,null,null,null,null,null,null,null,null,null,null,null,null,null,null,null,0]
[null,null,null,null,null,null,null,null,null,null,null,null,null,null,null,null,null,0]
[null,null,null,null,null,null,null,null,null,null,null,null,null,null,null,null,null,0]
[null,null,null,null,null,null,null,null,null,null,null,null,null,null,null,null,null,0]
[]
[null,null,null,null,null,"Столбы выделенные добавляются если в ячейке С4, значение 1."]
[null,null,null,null,null,"Если значение в ячейке С4 равно \"0\", столбы выделенные скрываются"]

{"sheet":"Лист1 (3)","index":1,"n_rows":15,"n_cols":18,"rows_kept":15,"cut":false,"hidden":false,"merged":[]}
[]
[null,"дата","2012-01-01",null,null,1,2,3,4,5,6,7,8,9,10,11,12,"СУММ"]
[null,"ЕСЛИ",{"$f":"IF(DAY(C2)=1,1,0)","v":1},null,null,null,null,null,null,null,null,null,null,null,null,null,null,{"$f":"SUM(F3:Q3)","v":0}]
[null,null,null,null,null,null,null,null,null,null,null,null,null,null,null,null,null,{"$f":"SUM(F4:Q4)","v":0}]
[null,null,null,null,null,null,null,null,null,null,null,null,null,null,null,null,null,0]
[null,null,null,null,null,null,null,null,null,null,null,null,null,null,null,null,null,0]
[null,null,null,null,null,null,null,null,null,null,null,null,null,null,null,null,null,0]
[null,null,null,null,null,null,null,null,null,null,null,null,null,null,null,null,null,0]
[null,null,null,null,null,null,null,null,null,null,null,null,null,null,null,null,null,0]
[null,null,null,null,null,null,null,null,null,null,null,null,null,null,null,null,null,0]
[null,null,null,null,null,null,null,null,null,null,null,null,null,null,null,null,null,0]
[null,null,null,null,null,null,null,null,null,null,null,null,null,null,null,null,null,0]
[]
[null,null,null,null,null,"Столбы выделенные добавляются если в ячейке С4, значение 1."]
[null,null,null,null,null,"Если значение в ячейке С4 равно \"0\", столбы выделенные скрываются"]

{"sheet":"Лист1 (2)","index":2,"n_rows":15,"n_cols":18,"rows_kept":15,"cut":false,"hidden":false,"merged":[]}
[]
[null,"дата","2012-01-01",null,null,1,2,3,4,5,6,7,8,9,10,11,12,"СУММ"]
[null,"ЕСЛИ",{"$f":"IF(DAY(C2)=1,1,0)","v":1},null,null,null,null,null,null,null,null,null,null,null,null,null,null,{"$f":"SUM(F3:Q3)","v":0}]
[null,null,null,null,null,null,null,null,null,null,null,null,null,null,null,null,null,{"$f":"SUM(F4:Q4)","v":0}]
[null,null,null,null,null,null,null,null,null,null,null,null,null,null,null,null,null,0]
[null,null,null,null,null,null,null,null,null,null,null,null,null,null,null,null,null,0]
[null,null,null,null,null,null,null,null,null,null,null,null,null,null,null,null,null,0]
[null,null,null,null,null,null,null,null,null,null,null,null,null,null,null,null,null,0]
[null,null,null,null,null,null,null,null,null,null,null,null,null,null,null,null,null,0]
[null,null,null,null,null,null,null,null,null,null,null,null,null,null,null,null,null,0]
[null,null,null,null,null,null,null,null,null,null,null,null,null,null,null,null,null,0]
[null,null,null,null,null,null,null,null,null,null,null,null,null,null,null,null,null,0]
[]
[null,null,null,null,null,"Столбы выделенные добавляются если в ячейке С4, значение 1."]
[null,null,null,null,null,"Если значение в ячейке С4 равно \"0\", столбы выделенные скрываются"]

{"sheet":"Лист2","index":3,"n_rows":0,"n_cols":0,"rows_kept":0,"cut":false,"hidden":true,"merged":[]}

{"sheet":"Лист3","index":4,"n_rows":0,"n_cols":0,"rows_kept":0,"cut":false,"hidden":true,"merged":[]}